bitfinex/quotes_BTCUSD_20230117
["timestamp","ask_amount","ask_price","bid_price","bid_amount"]
[1673915493857,0.83002595,21137.0,21136.0,0.39684]
[1673915494149,0.6393,21137.0,21136.0,0.0754]
[1673915494417,0.6393,21137.0,21136.0,0.24612692]
[1673915494669,0.3,21142.0,21138.0,0.29235732]
[1673915494929,0.3,21142.0,21141.0,0.15]
[1673915495185,0.3,21142.0,21141.0,0.64216692]
[1673915495483,0.10300002,21142.0,21141.0,0.47144]
[1673915495744,0.10300002,21142.0,21141.0,0.92836692]
[1673915496015,0.10300002,21142.0,21141.0,0.75764]
[1673915496538,2e-08,21142.0,21141.0,1.51516692]
[1673915497041,0.37185179,21150.0,21142.0,6e-05]
[1673915497312,0.37259042,21155.0,21147.0,0.0753]
[1673915497594,0.37238031,21160.0,21154.0,0.1508]
[1673915497852,0.47268,21156.0,21155.0,0.17072692]
[1673915498163,0.15,21155.0,21147.0,0.0753]
[1673915498439,0.71001491,21154.0,21148.0,0.17072692]
[1673915498707,0.51216595,21153.0,21144.0,0.0757]
[1673915498962,0.547706,21151.0,21143.0,0.075]
[1673915499227,1.82864082,21150.0,21143.0,0.075]
[1673915499513,1.03885,21148.0,21142.0,6e-05]
[1673915499779,1.79514082,21147.0,21142.0,6e-05]
[1673915500041,0.0754,21143.0,21142.0,6e-05]
[1673915500296,0.86071318,21143.0,21142.0,6e-05]
[1673915500568,0.29994,21142.0,21138.0,0.16027]
[1673915500890,0.19072595,21141.0,21133.0,0.80705152]
[1673915501150,1.12638553,21140.0,21134.0,2.6293]
[1673915501424,0.66379395,21139.0,21133.0,0.88245152]
[1673915501679,0.66379395,21139.0,21134.0,0.0754]
[1673915501680,0.19072595,21138.0,21134.0,0.0754]
[1673915501945,0.19072595,21137.0,21134.0,0.0754]
[1673915502210,0.34072595,21137.0,21133.0,0.80705152]
[1673915502467,0.38889447,21138.0,21133.0,0.97777844]
[1673915502725,0.29994,21142.0,21137.0,0.075]
[1673915502982,0.8652244,21142.0,21137.0,0.14646692]
[1673915503240,0.8652244,21142.0,21133.0,0.80705152]
[1673915503241,0.2546,21140.0,21133.0,0.80705152]
[1673915503507,0.473083,21138.0,21133.0,0.80705152]
[1673915504027,1.17910764,21137.0,21133.0,0.80705152]
[1673915504283,0.0752,21134.0,21133.0,0.80705152]
[1673915504537,1.53402695,21134.0,21133.0,0.80705152]
[1673915504953,1.343301,21134.0,21133.0,0.80705152]
[1673915505108,0.79493,21134.0,21133.0,0.95351844]
[1673915505360,0.473168,21135.0,21133.0,0.80705152]
[1673915505634,0.95037269,21134.0,21133.0,0.12725152]
[1673915505884,0.15,21133.0,21131.0,0.01996013]
[1673915506146,1.94461664,21132.0,21131.0,0.01996013]
[1673915506402,0.01996,21131.0,21129.0,0.01996013]
[1673915506662,2.22278664,21130.0,21129.0,0.01996013]
[1673915506915,2.22278664,21130.0,21124.0,0.02142782]
[1673915506916,0.145,21129.0,21124.0,0.02142782]
[1673915507182,0.29994,21125.0,21124.0,0.02142782]
[1673915508210,0.29994,21125.0,21124.0,0.09632782]
[1673915508469,0.29994,21125.0,21124.0,0.41808682]
[1673915508796,0.29994,21125.0,21124.0,0.49318682]
[1673915508981,0.473165,21135.0,21125.0,0.43244431]
[1673915509258,0.19072595,21134.0,21129.0,0.0754]
[1673915509520,0.0752,21132.0,21129.0,0.14646692]
[1673915509785,0.0752,21132.0,21125.0,0.43244431]
[1673915509786,1.470915,21131.0,21125.0,0.43244431]
[1673915510066,0.471759,21130.0,21125.0,0.43244431]
[1673915510323,1.276847,21129.0,21125.0,0.43244431]
[1673915510618,0.506459,21128.0,21125.0,0.43244431]
[1673915510880,0.658021,21128.0,21125.0,0.43244431]
[1673915511574,0.19072595,21127.0,21125.0,0.43244431]
[1673915511800,1.268459,21126.0,21125.0,0.43244431]
[1673915512027,1.502259,21126.0,21125.0,0.43244431]
[1673915512255,1.802259,21126.0,21125.0,0.43244431]
[1673915512485,0.43239569,21125.0,21124.0,0.02142782]
[1673915512769,2.65672056,21125.0,21124.0,0.02142782]
[1673915512984,1.23602669,21125.0,21124.0,0.02142782]
[1673915513448,0.15,21124.0,21118.0,0.00728343]
[1673915513736,0.15,21124.0,21120.0,0.0747]
[1673915513737,0.19072595,21124.0,21120.0,0.0747]
[1673915513998,0.1847,21128.0,21123.0,0.1508]
[1673915514259,0.1847,21128.0,21124.0,0.32458992]
[1673915514521,0.1847,21128.0,21125.0,0.46815692]
[1673915514774,0.1847,21128.0,21127.0,0.4365]
[1673915515034,0.1847,21128.0,21127.0,1.20422492]
[1673915515339,0.39375048,21137.0,21127.0,1.64062492]
[1673915515574,0.72724895,21136.0,21128.0,0.75570445]
[1673915515832,1.06122252,21135.0,21128.0,0.42762045]
[1673915516093,1.06122252,21135.0,21129.0,0.14646692]
[1673915516094,0.321759,21134.0,21129.0,0.14646692]
[1673915516357,0.86644088,21136.0,21131.0,0.0751]
[1673915516765,0.473117,21137.0,21132.0,0.14646692]
[1673915516770,0.473057,21140.0,21132.0,0.14646692]
[1673915516992,0.14070001,21134.0,21133.0,0.45822592]
[1673915517205,0.14070001,21134.0,21133.0,0.0747]
[1673915517442,0.33142596,21134.0,21128.0,0.28115353]
[1673915517657,1.13714195,21133.0,21128.0,0.28115353]
[1673915517881,0.15,21131.0,21128.0,0.28115353]
[1673915518136,0.473205,21133.0,21128.0,0.28115353]
[1673915518342,0.14070001,21134.0,21130.0,0.0747]
[1673915518586,0.14070001,21134.0,21131.0,0.45822592]
[1673915518804,0.14070001,21134.0,21133.0,0.15]
[1673915519021,0.14070001,21134.0,21133.0,0.622427]
[1673915519254,0.14070001,21134.0,21133.0,0.75889392]
[1673915519486,0.14070001,21134.0,21133.0,0.908527]
[1673915519714,0.14070001,21134.0,21133.0,0.472427]
[1673915519930,0.14070001,21134.0,21133.0,0.397027]
[1673915520164,0.4914397,21142.0,21133.0,0.397027]
[1673915520165,0.39263379,21142.0,21134.0,0.15]
[1673915520376,0.47650144,21143.0,21135.0,0.78745192]
[1673915520696,0.66722739,21143.0,21139.0,0.0751]
[1673915520912,0.66722739,21143.0,21136.0,0.45813692]
[1673915520913,0.00351944,21143.0,21140.0,0.13646692]
[1673915521134,0.00351944,21143.0,21142.0,0.0754]
[1673915521351,0.00351944,21143.0,21142.0,0.177613]
[1673915521600,0.00351944,21143.0,21142.0,0.21186692]
[1673915521821,0.00351944,21143.0,21142.0,0.397159]
[1673915522045,0.08509944,21143.0,21139.0,0.0754]
[1673915522287,0.51248495,21142.0,21132.0,0.703773]
[1673915522513,0.51248495,21142.0,21134.0,0.075]
[1673915522514,0.473043,21140.0,21134.0,0.075]
[1673915522730,0.15,21138.0,21132.0,0.0749]
[1673915522952,0.66384195,21137.0,21132.0,0.0749]
[1673915523178,0.19072595,21136.0,21132.0,0.0749]
[1673915523620,0.473095,21138.0,21132.0,0.0649]
[1673915523845,0.19072595,21137.0,21134.0,0.075]
[1673915524072,0.6022246,21137.0,21132.0,0.0649]
[1673915524573,0.4012368,21136.0,21128.0,0.28115353]
[1673915524805,0.94636,21134.0,21128.0,0.28115353]
[1673915525063,2.29092344,21133.0,21128.0,0.28115353]
[1673915525325,0.0752,21131.0,21128.0,0.28115353]
[1673915525652,0.0754,21129.0,21118.0,0.99171043]
[1673915525878,0.0752,21127.0,21119.0,0.0754]
[1673915526166,1.52991767,21126.0,21119.0,0.0754]
[1673915526428,0.58320367,21125.0,21118.0,0.08218343]
[1673915526690,0.473419,21123.0,21118.0,0.08218343]
[1673915526951,0.706137,21126.0,21118.0,0.21865035]
[1673915526952,0.34072595,21122.0,21118.0,0.21865035]
[1673915527210,0.19083943,21126.0,21119.0,1.26891861]
[1673915527476,0.19083943,21126.0,21120.0,0.178194]
[1673915527477,0.473408,21124.0,21120.0,0.178194]
[1673915527752,0.473408,21124.0,21119.0,0.0754]
[1673915527753,0.71149375,21124.0,21119.0,0.0754]
[1673915528003,0.15,21123.0,21119.0,0.21186692]
[1673915528338,0.66413395,21124.0,21119.0,0.0754]
[1673915528574,0.473337,21127.0,21120.0,1.15908714]
[1673915528833,0.86530293,21130.0,21123.0,0.0751]
[1673915529095,0.63780759,21130.0,21124.0,0.31458692]
[1673915529358,0.473243,21131.0,21126.0,0.0747]
[1673915529622,0.473243,21131.0,21127.0,0.13646692]
[1673915529623,0.47327,21130.0,21127.0,0.13646692]
[1673915529889,0.47327,21130.0,21119.0,0.02326042]
[1673915529890,0.80268,21128.0,21119.0,0.02326042]
[1673915530162,1.420098,21126.0,21119.0,0.02326042]
[1673915530434,0.20268,21124.0,21119.0,0.02326042]
[1673915530711,0.14673958,21119.0,21118.0,0.00728343]
[1673915531149,0.14673958,21119.0,21118.0,0.00728343]
[1673915531407,0.33746553,21119.0,21118.0,0.00728343]
[1673915531677,0.46849858,21119.0,21118.0,0.00728343]
[1673915531943,1.010497,21119.0,21118.0,0.00728343]
[1673915532232,1.0052315,21119.0,21118.0,0.00728343]
[1673915532486,0.61326733,21119.0,21118.0,0.00728343]
[1673915532752,0.14150833,21119.0,21118.0,0.08228343]
[1673915533037,0.14150833,21119.0,21118.0,0.00728343]
[1673915533571,0.46326733,21119.0,21118.0,0.00728343]
[1673915533846,1.21294831,21119.0,21118.0,0.00728343]
[1673915534107,1.28804831,21119.0,21118.0,0.00728343]
[1673915534365,1.07790145,21119.0,21118.0,0.00728343]
[1673915534635,0.68836733,21119.0,21118.0,0.00728343]
[1673915534901,0.61326733,21119.0,21118.0,0.00728343]
[1673915535703,0.46326733,21119.0,21118.0,0.00728343]
[1673915535981,0.46326733,21119.0,21118.0,0.08886343]
[1673915535982,0.14150833,21119.0,21118.0,0.08886343]
[1673915536493,0.14150833,21119.0,21118.0,0.32904243]
[1673915536784,8.33e-06,21119.0,21118.0,0.39738135]
[1673915537056,0.2087,21123.0,21119.0,0.15]
[1673915537349,0.473237,21132.0,21120.0,3.30315308]
[1673915537642,0.473237,21132.0,21121.0,3.1812448]
[1673915537903,0.00019,21123.0,21122.0,2.2747288]
[1673915538172,0.00019,21123.0,21122.0,4.19032316]
[1673915538445,0.58278467,21131.0,21123.0,0.15]
[1673915538706,0.19496324,21136.0,21125.0,1.570089]
[1673915538962,0.39067898,21138.0,21134.0,0.0754]
[1673915539230,0.473091,21138.0,21135.0,0.13646692]
[1673915539494,0.09128,21136.0,21135.0,0.13646692]
[1673915539755,0.02028083,21133.0,21129.0,0.0759]
[1673915540019,0.321759,21132.0,21129.0,0.0759]
[1673915540331,0.68421078,21133.0,21129.0,0.0759]
[1673915540332,0.02028083,21133.0,21130.0,0.0754]
[1673915540596,0.02028083,21133.0,21132.0,0.1494]
[1673915540857,0.02028083,21133.0,21132.0,0.876392]
[1673915541114,0.53045338,21140.0,21132.0,1.82336089]
[1673915541370,0.473026,21141.0,21138.0,0.0747]
[1673915541682,0.473048,21140.0,21132.0,0.0759]
[1673915541942,0.34072595,21139.0,21133.0,0.94677461]
[1673915542203,0.34072595,21139.0,21136.0,0.0754]
[1673915542204,0.31060863,21139.0,21136.0,0.0754]
[1673915542475,0.473013,21142.0,21137.0,0.94668964]
[1673915542763,0.473013,21142.0,21138.0,0.321759]
[1673915543271,0.946005,21142.0,21135.0,0.0754]
[1673915543547,1.15206742,21141.0,21132.0,0.0752]
[1673915543808,0.20268,21138.0,21126.0,0.548048]
[1673915544074,0.20268,21138.0,21127.0,1.02197916]
[1673915544075,0.0747,21135.0,21127.0,1.02197916]
[1673915544381,0.0754,21133.0,21128.0,0.94687916]
[1673915544645,0.19072595,21132.0,21129.0,0.94687916]
[1673915544920,0.19072595,21132.0,21126.0,0.02178589]
[1673915544921,0.19072595,21132.0,21130.0,0.94687916]
[1673915545181,0.19072595,21132.0,21126.0,0.02178589]
[1673915545182,0.73934795,21132.0,21126.0,0.02178589]
[1673915545465,0.0751,21130.0,21127.0,0.94702466]
[1673915545732,0.0751,21130.0,21126.0,0.01678589]
[1673915545733,2.00773395,21129.0,21126.0,0.01678589]
[1673915545998,0.90088075,21128.0,21126.0,0.01678589]
[1673915546258,1.343813,21127.0,21126.0,0.01678589]
[1673915546517,1.343813,21127.0,21126.0,5.89e-06]
[1673915546518,2.48016175,21127.0,21126.0,5.89e-06]
[1673915546782,2.7358898,21127.0,21126.0,5.89e-06]
[1673915547269,2.5894358,21127.0,21126.0,5.89e-06]
[1673915547559,2.2894358,21127.0,21126.0,5.89e-06]
[1673915547818,1.268413,21127.0,21126.0,5.89e-06]
[1673915548072,2.42162169,21127.0,21126.0,5.89e-06]
[1673915548334,3.11851749,21127.0,21126.0,5.89e-06]
[1673915548584,3.68670324,21127.0,21126.0,5.89e-06]
[1673915548849,4.12470324,21127.0,21126.0,5.89e-06]
[1673915549424,5.411e-05,21125.0,21119.0,0.94746764]
[1673915549685,0.20268,21123.0,21119.0,6e-05]
[1673915549942,2.39651275,21122.0,21119.0,6e-05]
[1673915550230,0.321759,21121.0,21119.0,6e-05]
[1673915550490,0.795243,21120.0,21119.0,6e-05]
[1673915550750,0.473473,21121.0,21119.0,6e-05]
[1673915551834,0.473413,21124.0,21119.0,6e-05]
[1673915552086,5.411e-05,21125.0,21122.0,0.0749]
[1673915552384,5.411e-05,21125.0,21124.0,0.075]
[1673915552639,5.411e-05,21125.0,21124.0,0.253089]
[1673915553146,5.411e-05,21125.0,21124.0,1.27559192]
[1673915553666,5.411e-05,21125.0,21124.0,1.42559192]
[1673915553916,5.411e-05,21125.0,21124.0,1.27559192]
[1673915554435,5.411e-05,21125.0,21124.0,1.20019192]
[1673915554684,5.411e-05,21125.0,21124.0,0.178089]
[1673915555196,5.411e-05,21125.0,21120.0,0.473469]
[1673915555475,5.411e-05,21125.0,21124.0,0.0754]
[1673915555725,5.411e-05,21125.0,21124.0,1.34435991]
[1673915555976,5.411e-05,21125.0,21124.0,0.397159]
[1673915556247,5.411e-05,21125.0,21124.0,1.34422879]
[1673915556486,5.411e-05,21125.0,21124.0,2.36638948]
[1673915556756,5.411e-05,21125.0,21124.0,3.14359117]
[1673915557003,5.411e-05,21125.0,21124.0,3.74359117]
[1673915557877,5.411e-05,21125.0,21124.0,2.29128948]
[1673915558376,5.411e-05,21125.0,21124.0,1.344249]
[1673915559103,5.411e-05,21125.0,21124.0,0.397459]
[1673915559106,5.411e-05,21125.0,21124.0,0.321759]
[1673915559355,0.08163411,21125.0,21119.0,0.58046]
[1673915559636,0.19072595,21124.0,21119.0,0.58046]
[1673915559908,0.19072595,21123.0,21121.0,0.075]
[1673915560175,5.411e-05,21125.0,21122.0,0.253257]
[1673915560427,5.411e-05,21125.0,21124.0,0.2249]
[1673915560690,5.411e-05,21125.0,21124.0,0.253036]
[1673915561492,5.411e-05,21125.0,21124.0,2.33527889]
[1673915562305,5.411e-05,21125.0,21124.0,2.03527889]
[1673915562566,5.411e-05,21125.0,21124.0,0.726431]
[1673915562881,5.411e-05,21125.0,21124.0,2.04806565]
[1673915563139,0.00351276,21130.0,21125.0,0.15006941]
[1673915563412,0.00351276,21130.0,21129.0,0.1506]
[1673915563671,0.00351276,21130.0,21129.0,0.178086]
[1673915563672,0.08509276,21130.0,21129.0,0.178086]
[1673915563928,0.00351276,21130.0,21129.0,0.321612]
[1673915564421,0.00351276,21130.0,21126.0,0.549239]
[1673915564422,0.00351276,21130.0,21126.0,0.0759]
[1673915564695,0.19423871,21130.0,21129.0,0.910383]
[1673915564945,0.19423871,21130.0,21125.0,0.47342941]
[1673915565229,0.19423871,21130.0,21125.0,6.941e-05]
[1673915565230,0.19072595,21129.0,21125.0,6.941e-05]
[1673915565488,0.34072595,21128.0,21125.0,6.941e-05]
[1673915566045,0.00351276,21130.0,21125.0,6.941e-05]
[1673915566302,0.00351276,21130.0,21126.0,0.0754]
[1673915566607,0.19072595,21129.0,21125.0,6.941e-05]
[1673915567086,0.00351276,21130.0,21125.0,6.941e-05]
[1673915567087,1.45910495,21128.0,21125.0,6.941e-05]
[1673915567359,0.0754,21126.0,21125.0,6.941e-05]
[1673915567616,1.343859,21126.0,21125.0,6.941e-05]
[1673915568237,0.15,21125.0,21118.0,0.00598716]
[1673915568491,0.473419,21123.0,21118.0,0.00598716]
[1673915568765,0.0747,21121.0,21118.0,0.00598716]
[1673915569027,0.26602595,21120.0,21118.0,0.00598716]
[1673915569290,0.397159,21119.0,21118.0,0.00598716]
[1673915569529,0.548806,21120.0,21118.0,0.00598716]
[1673915569530,0.545,21120.0,21118.0,0.00598716]
[1673915569781,0.395,21120.0,21118.0,0.00598716]
[1673915570550,0.395,21120.0,21118.0,0.08088716]
[1673915570911,0.395,21120.0,21119.0,1.34369205]
[1673915571326,0.395,21120.0,21119.0,1.71905087]
[1673915571599,0.395,21120.0,21119.0,2.34255787]
[1673915571851,0.395,21120.0,21119.0,1.89255787]
[1673915572099,0.395,21120.0,21119.0,0.870666]
[1673915572592,0.395,21120.0,21119.0,0.397159]
[1673915572845,0.395,21120.0,21119.0,0.321759]
[1673915573358,0.395,21120.0,21118.0,0.00598716]
[1673915573600,0.4345,21120.0,21118.0,0.00598716]
[1673915573852,0.395,21120.0,21118.0,0.00598716]
[1673915574356,0.15,21119.0,21118.0,0.00598716]
[1673915576146,0.2254,21119.0,21118.0,0.00598716]
[1673915576404,0.868495,21120.0,21118.0,0.00598716]
[1673915576653,0.395,21120.0,21118.0,0.00598716]
[1673915576914,0.69687879,21119.0,21118.0,8.716e-05]
[1673915577158,0.7855548,21119.0,21118.0,8.716e-05]
[1673915577413,0.9355548,21119.0,21118.0,8.716e-05]
[1673915577905,0.321759,21119.0,21118.0,8.716e-05]
[1673915578163,1.341989,21120.0,21118.0,8.716e-05]
[1673915578413,0.395,21120.0,21118.0,8.716e-05]
[1673915578921,0.395,21120.0,21119.0,0.178236]
[1673915579177,0.395,21120.0,21119.0,0.253636]
[1673915579447,0.395,21120.0,21119.0,0.403636]
[1673915579710,0.395,21120.0,21119.0,1.20088111]
[1673915579958,0.395,21120.0,21119.0,1.57628111]
[1673915580207,0.395,21120.0,21119.0,1.42628111]
[1673915580457,0.623288,21129.0,21120.0,0.20467633]
[1673915580723,0.473311,21128.0,21122.0,0.0746]
[1673915580967,0.473311,21128.0,21123.0,0.178188]
[1673915581228,0.47678676,21130.0,21124.0,0.32165]
[1673915581531,0.00351276,21130.0,21126.0,0.0754]
[1673915581786,0.00351276,21130.0,21127.0,0.3216]
[1673915582048,0.00351276,21130.0,21128.0,0.321759]
[1673915582503,0.00351276,21130.0,21126.0,0.0753]
[1673915582761,0.19423871,21130.0,21127.0,0.321759]
[1673915583016,0.00351276,21130.0,21126.0,0.0753]
[1673915583632,0.00351276,21130.0,21128.0,0.0754]
[1673915583805,0.00351276,21130.0,21129.0,0.328773]
[1673915584060,0.00351276,21130.0,21129.0,0.802056]
[1673915584571,0.00351276,21130.0,21129.0,0.177973]
[1673915586175,0.00351276,21130.0,21125.0,0.548762]
[1673915586434,0.19072595,21129.0,21125.0,0.548762]
[1673915586737,0.19072595,21129.0,21126.0,0.321759]
[1673915586991,0.00351276,21130.0,21128.0,0.0746]
[1673915587263,0.08509276,21130.0,21129.0,0.321711]
[1673915587564,0.08509276,21130.0,21125.0,0.531062]
[1673915587833,0.19072595,21129.0,21125.0,0.0754]
[1673915588100,0.19072595,21129.0,21122.0,0.473433]
[1673915588101,0.19072595,21128.0,21122.0,0.473433]
[1673915588359,0.34072595,21127.0,21121.0,0.47345]
[1673915588613,0.19072595,21126.0,21121.0,0.47345]
[1673915589092,0.26582595,21125.0,21120.0,0.20467633]
[1673915589095,0.26582595,21125.0,21120.0,0.67815333]
[1673915589354,0.19072595,21125.0,21121.0,0.94715607]
[1673915589614,0.19072595,21125.0,21122.0,0.321759]
[1673915589882,1.08883769,21127.0,21120.0,0.20467633]
[1673915590218,1.27956364,21127.0,21120.0,0.20467633]
[1673915590396,1.27956364,21127.0,21122.0,0.0747]
[1673915590397,0.01,21127.0,21122.0,0.0747]
[1673915590651,0.01,21127.0,21124.0,0.0753]
[1673915590918,0.01,21127.0,21125.0,0.252978]
[1673915591172,0.01,21127.0,21126.0,0.32171]
[1673915591465,0.09158,21127.0,21126.0,0.32171]
[1673915591713,0.2231668,21127.0,21120.0,0.20467633]
[1673915591974,0.473375,21125.0,21120.0,0.20467633]
[1673915592251,0.80624488,21124.0,21120.0,0.20467633]
[1673915592515,0.51248495,21123.0,21120.0,0.20467633]
[1673915593038,0.19072595,21123.0,21120.0,0.20467633]
[1673915593039,1.08903861,21124.0,21120.0,0.20467633]
[1673915593300,0.698815,21124.0,21120.0,0.20467633]
[1673915593822,0.623415,21124.0,21120.0,0.20467633]
[1673915594363,1.48939381,21124.0,21120.0,0.20467633]
[1673915594621,0.91085494,21123.0,21120.0,0.20467633]
[1673915594876,2.13209324,21122.0,21120.0,0.20467633]
[1673915595154,0.90232438,21121.0,21120.0,0.20467633]
[1673915595427,1.54998012,21121.0,21118.0,8.716e-05]
[1673915595698,0.526429,21120.0,21118.0,8.716e-05]
[1673915595959,0.20467,21120.0,21118.0,8.716e-05]
[1673915596214,0.473493,21120.0,21118.0,8.716e-05]
[1673915596474,0.86398558,21120.0,21118.0,8.716e-05]
[1673915596956,0.471759,21119.0,21118.0,8.716e-05]
[1673915596958,0.473493,21120.0,21118.0,8.716e-05]
[1673915597223,0.5455,21121.0,21117.0,0.00914142]
[1673915597485,0.73177959,21123.0,21117.0,0.00914142]
[1673915597747,0.66415495,21123.0,21118.0,0.17826]
[1673915598035,0.473429,21123.0,21117.0,0.00914142]
[1673915598267,1.05461288,21123.0,21117.0,0.00914142]
[1673915598528,1.176827,21126.0,21118.0,1.42079567]
[1673915598529,0.473357,21126.0,21118.0,1.42079567]
[1673915598792,0.66408295,21126.0,21119.0,0.178233]
[1673915599071,1.197991,21127.0,21120.0,0.321708]
[1673915599072,0.01,21127.0,21120.0,0.321708]
[1673915599373,0.01,21127.0,21121.0,0.478215]
[1673915599636,0.01,21127.0,21122.0,1.268549]
[1673915599893,0.01,21127.0,21123.0,0.178196]
[1673915600154,0.01,21127.0,21124.0,0.321643]
[1673915600155,0.20072595,21127.0,21124.0,0.321643]
[1673915600420,0.22079854,21127.0,21125.0,0.178178]
[1673915600908,0.483333,21127.0,21119.0,0.64276]
[1673915601175,0.483333,21127.0,21119.0,0.6425625]
[1673915601176,0.19072595,21126.0,21119.0,0.6425625]
[1673915601430,0.19072595,21125.0,21120.0,0.321759]
[1673915601709,0.19072595,21126.0,21121.0,1.598525]
[1673915601966,0.01,21127.0,21123.0,0.15]
[1673915602247,0.01,21127.0,21124.0,1.124915]
[1673915602537,0.01,21127.0,21125.0,1.56870207]
[1673915602801,0.01,21127.0,21126.0,1.124816]
[1673915603815,0.01,21127.0,21126.0,2.37170141]
[1673915604648,0.01,21127.0,21126.0,1.124816]
[1673915604860,0.01,21127.0,21126.0,2.07171797]
[1673915605373,0.01,21127.0,21126.0,2.06171797]
[1673915605953,0.00351276,21130.0,21127.0,0.15425753]
[1673915606206,0.00351276,21130.0,21128.0,1.26853197]
[1673915606472,0.00351276,21130.0,21129.0,0.618078]
[1673915606746,0.00351276,21130.0,21129.0,2.03813821]
[1673915607576,0.00351276,21130.0,21129.0,1.091361]
[1673915607846,0.19423871,21130.0,21129.0,1.7380831]
[1673915608110,0.19423871,21130.0,21129.0,0.641361]
[1673915608111,0.00351276,21130.0,21129.0,0.641361]
[1673915608681,0.00351276,21130.0,21129.0,1.114644]
[1673915608929,0.00351276,21130.0,21129.0,1.264644]
[1673915609430,0.00351276,21130.0,21129.0,1.564644]
[1673915610177,0.00351276,21130.0,21129.0,2.51137176]
[1673915610971,0.00351276,21130.0,21129.0,2.98855613]
[1673915611718,7.6e-07,21130.0,21129.0,2.98855613]
[1673915611925,0.00291509,21134.0,21129.0,3.51265613]
[1673915612153,0.00291509,21134.0,21130.0,2.04551013]
[1673915612375,0.19364104,21134.0,21131.0,1.587755]
[1673915612598,0.00291509,21134.0,21132.0,0.321566]
[1673915612840,0.00291509,21134.0,21133.0,1.114424]
[1673915613914,0.00291509,21134.0,21133.0,1.264424]
[1673915614105,0.00291509,21134.0,21133.0,2.51095569]
[1673915614600,0.00291509,21134.0,21133.0,2.04162569]
[1673915614817,0.00291509,21134.0,21133.0,2.68816043]
[1673915615036,0.00291509,21134.0,21133.0,2.04162569]
[1673915615552,0.00291509,21134.0,21133.0,2.98815459]
[1673915615774,1.509e-05,21134.0,21133.0,2.98815459]
[1673915616001,0.00291509,21136.0,21134.0,0.15006]
[1673915616225,0.00291509,21136.0,21135.0,3.16469359]
[1673915616487,0.00291509,21136.0,21135.0,3.46469359]
[1673915616965,0.00291509,21136.0,21135.0,2.040963]
[1673915617201,0.00291509,21136.0,21135.0,2.98744463]
[1673915617642,0.00291509,21136.0,21135.0,2.68744463]
[1673915617869,0.00291509,21136.0,21135.0,3.46464632]
[1673915619686,0.19364104,21136.0,21135.0,3.16464632]
[1673915619920,0.00291509,21136.0,21135.0,2.68744463]
[1673915620140,0.00291509,21136.0,21135.0,3.16464632]
[1673915620667,0.00271685,21139.0,21136.0,0.08801456]
[1673915620905,0.00351944,21143.0,21137.0,1.76838332]
[1673915621129,0.00351944,21143.0,21138.0,1.90365032]
[1673915621349,0.00351944,21143.0,21139.0,3.49290532]
[1673915621566,0.00351944,21143.0,21140.0,2.04511832]
[1673915621789,0.00351944,21143.0,21141.0,3.16068532]
[1673915621984,0.00351944,21143.0,21142.0,2.04508632]
[1673915622252,0.00351944,21143.0,21142.0,2.51807832]
[1673915622698,9.44e-06,21143.0,21142.0,2.51807832]
[1673915622991,0.00297941,21145.0,21142.0,2.76306832]
[1673915623212,0.00297941,21149.0,21144.0,0.47720169]
[1673915623435,0.00297941,21149.0,21145.0,4.09518832]
[1673915623667,0.00297941,21149.0,21146.0,1.59159432]
[1673915623885,0.00297941,21149.0,21147.0,2.36716269]
[1673915624107,0.00297941,21149.0,21148.0,0.94509569]
[1673915624356,0.00297941,21149.0,21148.0,0.167894]
[1673915624586,0.00297941,21149.0,21148.0,0.16685057]
[1673915624808,0.00297941,21149.0,21148.0,1.09405226]
[1673915625267,0.00297941,21149.0,21148.0,1.56280342]
[1673915625525,0.00297941,21149.0,21148.0,1.09405226]
[1673915625756,0.00297941,21149.0,21148.0,2.03992225]
[1673915626018,0.00297941,21152.0,21150.0,0.00129601]
[1673915626234,0.00297941,21152.0,21151.0,1.266836]
[1673915627377,0.00297941,21152.0,21151.0,1.74403769]
[1673915627594,0.00297941,21152.0,21151.0,2.04403769]
[1673915627812,0.00456269,21154.0,21151.0,2.04403769]
[1673915628069,0.00456269,21154.0,21152.0,0.68816125]
[1673915628281,0.00456269,21154.0,21153.0,0.321222]
[1673915628512,0.00456269,21154.0,21153.0,1.266714]
[1673915628743,0.14821445,21160.0,21153.0,1.266714]
[1673915628990,0.19072595,21159.0,21154.0,0.166813]
[1673915629220,0.79072595,21158.0,21152.0,0.00386125]
[1673915629446,0.19072595,21157.0,21152.0,0.00386125]
[1673915629671,0.6,21158.0,21152.0,0.00386125]
[1673915629672,0.6,21155.0,21152.0,0.00386125]
[1673915629900,1.45787395,21154.0,21152.0,0.00386125]
[1673915630130,0.51242795,21153.0,21150.0,0.00129601]
[1673915630348,0.6,21151.0,21150.0,0.00129601]
[1673915630641,2.12571053,21151.0,21150.0,0.00129601]
[1673915630855,1.93498458,21151.0,21150.0,0.00129601]
[1673915631079,0.00129,21150.0,21140.0,0.473028]
[1673915631307,0.19072595,21149.0,21141.0,0.473009]
[1673915631527,0.19072595,21148.0,21142.0,0.01792647]
[1673915631740,0.34072595,21147.0,21142.0,0.01792647]
[1673915631961,0.19072595,21146.0,21142.0,0.01792647]
[1673915632191,0.19072595,21145.0,21142.0,0.01792647]
[1673915632407,0.84766257,21147.0,21142.0,0.01792647]
[1673915632633,0.5271,21147.0,21142.0,0.01792647]
[1673915632868,0.5271,21147.0,21142.0,0.49091247]
[1673915633086,0.5271,21147.0,21143.0,0.321702]
[1673915633316,0.651108,21152.0,21144.0,0.63953]
[1673915633558,0.5225,21151.0,21145.0,0.32167]
[1673915633773,0.71322595,21151.0,21144.0,0.472942]
[1673915634000,0.19072595,21150.0,21144.0,0.472942]
[1673915634462,0.19072595,21150.0,21143.0,0.472957]
[1673915634463,0.19072595,21149.0,21143.0,0.472957]
[1673915634689,0.34072595,21148.0,21143.0,0.472957]
[1673915634905,0.34072595,21148.0,21142.0,0.49091247]
[1673915634906,0.19072595,21148.0,21142.0,0.49091247]
[1673915635402,1.319686,21151.0,21143.0,0.79890369]
[1673915635403,0.90160315,21151.0,21143.0,0.79890369]
[1673915635714,0.71322595,21151.0,21145.0,0.945835]
[1673915635900,0.5225,21151.0,21146.0,0.321651]
[1673915636113,0.5225,21151.0,21147.0,1.112301]
[1673915636339,0.19072595,21151.0,21148.0,0.321619]
[1673915636561,0.622792,21151.0,21144.0,0.472926]
[1673915636775,0.19072595,21150.0,21144.0,0.472926]
[1673915636998,0.19072595,21149.0,21144.0,0.472926]
[1673915637473,0.19072595,21149.0,21144.0,0.945873]
[1673915637701,0.19072595,21149.0,21145.0,0.321702]